bitfinex-derivatives/quotes_ETHF0:USTF0_20251009
["timestamp","ask_amount","ask_price","bid_price","bid_amount"]
[1760016943424,0.54418114,4376.3,4375.6,0.5951]
[1760016943632,3.2078,4376.4,4375.5,0.2356]
[1760016943633,0.41118,4375.9,4375.5,0.2356]
[1760016943832,0.41119,4375.8,4375.6,41.3951]
[1760016944233,0.41306507,4375.8,4375.6,41.3951]
[1760016944528,0.41126,4375.0,4374.9,0.5397]
[1760016944719,0.64326,4375.0,4374.9,0.5397]
[1760016944927,0.64326,4375.0,4374.9,41.3397]
[1760016945231,5.232,4375.0,4374.0,0.4489]
[1760016945529,0.41133,4374.2,4374.1,0.5397]
[1760016945829,0.54233635,4374.2,4374.1,0.5397]
[1760016946036,0.54233635,4374.2,4374.1,5.5397]
[1760016946334,3.2078,4375.2,4375.1,0.5397]
[1760016946526,3.982993,4375.2,4375.1,0.5397]
[1760016946726,0.542193,4375.2,4375.1,0.5397]
[1760016946926,3.2078,4375.7,4375.6,0.5397]
[1760016947128,0.4112,4375.6,4375.5,0.2169]
[1760016947333,3.40204139,4375.2,4375.1,0.5397]
[1760016947532,3.74999578,4375.2,4375.1,0.5397]
[1760016947737,0.54219578,4375.2,4375.1,5.95095]
[1760016947931,0.00187507,4375.8,4375.6,0.9509]
[1760016948132,0.00187507,4375.8,4375.6,0.5397]
[1760016948333,0.77585772,4375.7,4375.6,0.5397]
[1760016948531,3.85199,4375.7,4375.6,0.5397]
[1760016948737,4.39280413,4375.7,4375.6,0.5397]
[1760016949139,12.42361396,4375.7,4375.6,0.5397]
[1760016949731,3.74861413,4375.7,4375.6,0.5397]
[1760016949942,0.54081413,4375.7,4375.6,0.5397]
[1760016950233,3.98161413,4375.7,4375.6,0.5397]
[1760016950935,3.2078,4375.7,4375.6,0.5397]
[1760016951131,0.00187507,4375.8,4375.7,0.95089]
[1760016951332,0.00187507,4375.8,4375.7,9.15869]
[1760016951532,3.2078,4377.4,4377.3,0.41104]
[1760016951731,3.74906542,4377.4,4377.3,0.95074]
[1760016951932,3.2078,4377.4,4377.3,0.95074]
[1760016952145,0.1827,4377.8,4377.7,0.95071]
[1760016952438,0.00220471,4377.8,4377.7,0.95353589]
[1760016952640,3.2078,4378.7,4378.0,0.62788]
[1760016952943,3.2078,4379.4,4379.3,0.95056]
[1760016953233,0.41083,4379.6,4379.5,0.2169]
[1760016953436,3.4408,4379.6,4379.0,0.2169]
[1760016953642,3.2078,4379.1,4379.0,0.7566]
[1760016953836,3.4408,4379.1,4379.0,0.7566]
[1760016954036,3.2078,4379.1,4379.0,0.7566]
[1760016954238,0.00206132,4379.6,4379.5,0.7566]
[1760016954437,0.76730686,4379.6,4379.0,0.2169]
[1760016954637,3.61867,4379.2,4379.1,0.5397]
[1760016954839,3.61867,4379.2,4377.5,0.2169]
[1760016954840,0.41097,4378.1,4377.5,0.2169]
[1760016955138,3.85177,4378.1,4377.5,0.2169]
[1760016955339,3.85177,4378.1,4377.6,0.5397]
[1760016955643,0.411,4377.8,4377.7,0.54252589]
[1760016955939,3.2078,4378.1,4378.0,0.7566]
[1760016956130,0.41092,4378.6,4378.1,0.5397]
[1760016956330,3.2078,4378.7,4378.6,0.5397]
[1760016956536,36.67915132,4379.6,4378.6,0.5397]
[1760016956537,0.41089,4379.0,4378.6,0.5397]
[1760016956738,0.41092,4378.7,4378.5,0.2169]
[1760016956942,0.41092,4378.7,4378.6,0.5397]
[1760016957140,0.1826,4379.0,4378.6,0.5397]
[1760016957436,0.1826,4379.0,4378.5,0.2169]
[1760016957437,0.233,4378.9,4378.8,0.9506]
[1760016957639,0.1826,4379.0,4378.9,0.5397]
[1760016958034,0.00206132,4379.6,4379.5,1.16744]
[1760016958540,1.02663,4381.5,4379.5,1.16744]
[1760016958541,0.41068,4381.2,4381.1,0.5397]
[1760016958741,0.64368,4381.2,4381.1,0.5397]
[1760016958940,0.41061,4382.0,4381.9,0.5397]
[1760016959143,3.85141,4382.0,4381.9,0.5397]
[1760016959341,8.85419755,4382.0,4381.9,0.00270864]
[1760016959543,11.83319876,4382.0,4381.9,0.00270864]
[1760016960040,11.60019876,4382.0,4381.9,0.54240864]
[1760016960237,8.85419755,4382.0,4381.9,8.64e-06]
[1760016960433,11.18958876,4382.0,4381.0,0.7566]
[1760016960637,0.41067,4381.4,4381.1,0.5397]
[1760016960939,0.233,4381.3,4381.1,0.41068]
[1760016961240,0.1825,4381.9,4381.8,0.7566]
[1760016961542,3.2078,4382.5,4382.4,0.7566]
[1760016961743,0.022,4382.9,4382.5,0.5397]
[1760016961942,0.022,4382.9,4382.8,0.5397]
[1760016962343,0.02434437,4382.9,4382.8,0.5397]
[1760016963044,0.02434437,4382.9,4381.8,0.21858045]
[1760016963243,0.41061,4381.9,4381.8,0.00168045]
[1760016963543,0.64361,4381.9,4381.8,0.00168045]
[1760016963945,3.64757466,4381.9,4381.8,0.00168045]
[1760016964150,8.64757466,4381.9,4381.8,0.00168045]
[1760016965249,0.41073,4380.6,4380.5,0.7566]
[1760016965438,0.41073,4380.6,4380.4,3.2078]
[1760016965439,0.64373,4380.6,4380.4,3.2078]
[1760016965642,0.41078,4380.1,4380.0,0.7566]
[1760016965843,0.233,4380.2,4380.1,0.5397]
[1760016966142,1.02666,4381.4,4380.0,0.2169]
[1760016966143,0.233,4380.7,4380.5,0.2169]
[1760016966345,3.2078,4381.3,4380.6,0.5397]
[1760016966544,0.41069,4381.1,4381.0,0.7566]
[1760016966747,0.41073,4380.7,4380.5,0.00214511]
[1760016966953,0.64373,4380.7,4380.5,0.00214511]
[1760016967842,2.90905912,4380.6,4380.5,0.00214511]
[1760016968250,3.2078,4380.8,4380.6,0.5397]
[1760016968449,0.233,4380.7,4380.6,0.5397]
[1760016969046,0.233,4380.7,4380.6,0.95043]
[1760016969245,0.233,4381.2,4381.1,0.5397]
[1760016969445,3.61839,4382.1,4382.0,0.2169]
[1760016969645,3.2078,4382.1,4382.0,0.7566]
[1760016970141,3.2078,4382.1,4382.0,5.7566]
[1760016970547,3.2078,4382.1,4382.0,0.7566]
[1760016970949,0.41059,4382.2,4382.1,0.5397]
[1760016971750,3.2078,4382.4,4382.1,0.5397]
[1760016972049,1.25945,4382.3,4381.8,0.5397]
[1760016972248,0.41061,4381.9,4381.8,0.5397]
[1760016973851,0.41058,4382.2,4382.1,0.586]
[1760016974058,0.64358,4382.2,4382.1,0.586]
[1760016974750,0.41058,4382.2,4382.1,0.586]
[1760016975154,3.61836,4382.5,4382.1,5.41059]
[1760016975353,0.41057,4382.4,4382.2,0.586]
[1760016975558,0.41057,4382.4,4382.0,0.2211]
[1760016975559,0.3419,4382.7,4382.6,0.586]
[1760016975756,0.1089,4382.7,4382.6,0.586]
[1760016976056,0.02434437,4382.9,4382.7,0.41054]
[1760016976258,0.02434437,4382.9,4382.8,0.586]
[1760016977552,0.02434437,4382.9,4382.0,0.2211]
[1760016977553,3.46514437,4382.9,4382.0,0.2211]
[1760016977859,0.41059,4382.1,4382.0,0.8071]
[1760016978251,1.02649,4382.1,4381.5,0.2169]
[1760016978555,0.233,4382.0,4381.2,3.2078]
[1760016978760,0.41066,4381.4,4381.3,0.586]
[1760016979262,0.233,4381.6,4381.2,44.0078]
[1760016979453,0.41067,4381.4,4381.3,0.586]
[1760016980060,0.1825,4382.0,4381.6,0.586]
[1760016980256,0.4155,4382.0,4381.6,0.586]
[1760016980450,0.4155,4382.0,4381.5,0.63175]
[1760016980451,0.1825,4382.0,4381.9,0.41061]
[1760016980657,0.1825,4382.0,4381.9,0.586]
[1760016981658,1.02619,4383.4,4382.6,0.586]
[1760016981659,0.41054,4382.7,4382.6,0.586]
[1760016982262,3.2078,4383.4,4382.8,0.586]
[1760016982465,0.4105,4383.1,4382.8,0.586]
[1760016982655,0.233,4383.3,4382.8,0.586]
[1760016982656,0.41051,4383.0,4382.8,0.586]
[1760016983759,0.41053,4382.8,4382.6,40.8]
[1760016983964,0.41057,4382.3,4382.2,0.586]
[1760016984261,0.41056,4382.5,4382.2,0.586]
[1760016984448,0.41054,4382.8,4382.3,0.586]
[1760016984654,0.41053,4382.8,4382.6,0.586]
[1760016984854,0.02434437,4382.9,4382.7,0.586]
[1760016985057,0.41053,4382.8,4382.7,0.586]
[1760016985255,0.41053,4382.8,4381.5,3.4289]
[1760016985256,0.2059,4382.7,4381.5,3.4289]
[1760016985455,1.02647,4382.2,4381.5,0.2211]
[1760016985655,0.41063,4381.7,4381.6,0.586]
[1760016985857,0.41063,4381.7,4381.6,41.386]
[1760016986058,3.2078,4382.3,4382.0,0.2211]
[1760016986256,3.23214437,4382.9,4382.5,0.2211]
[1760016986453,0.41055,4382.6,4382.5,0.8071]
[1760016987868,0.41059,4382.1,4382.0,0.8071]
[1760016989161,3.85139,4382.2,4382.1,0.586]
[1760016989364,3.23214437,4382.9,4382.5,0.2211]
[1760016989563,0.41054,4382.7,4382.6,0.586]
[1760016990763,0.02434437,4382.9,4382.7,0.41053]
[1760016990973,1.02607,4383.9,4382.9,0.41052]
[1760016991159,2.2371654,4384.3,4383.2,0.586]
[1760016991160,0.233,4383.8,4383.2,0.586]
[1760016991356,0.233,4383.8,4383.3,40.8]
[1760016991662,3.61827,4383.4,4383.3,41.386]
[1760016992061,3.62055321,4383.4,4383.3,0.586]
[1760016992361,0.00228321,4383.4,4383.3,0.586]
[1760016993161,0.00228321,4383.4,4383.3,0.99648]
[1760016993368,0.00228321,4383.4,4383.3,5.99648]
[1760016993758,0.00228321,4383.4,4383.3,6.22948]
[1760016994163,0.00228321,4383.4,4383.3,47.02948]
[1760016994661,0.1824,4384.0,4383.9,0.586]
[1760016994859,0.1824,4384.0,4383.9,5.586]
[1760016995064,3.2078,4385.0,4384.6,0.586]
[1760016995261,3.2078,4385.0,4384.8,0.586]
[1760016995467,3.2078,4385.0,4384.9,0.586]
[1760016995770,3.21040602,4385.0,4384.9,0.58766884]
[1760016996374,3.21040602,4385.0,4383.2,1.25922]
[1760016996375,0.41044,4383.7,4383.6,3.2078]
[1760016996667,0.41044,4383.7,4383.6,44.0078]
[1760016997170,0.41044,4383.7,4383.6,40.8]
[1760016997359,0.41044,4383.7,4383.6,40.80190873]
[1760016998066,4.23375,4384.4,4383.6,40.80190873]
[1760016998067,0.41044,4383.8,4383.6,40.80190873]
[1760016998467,0.41044,4383.8,4383.7,0.586]
[1760016999768,0.1245,4384.5,4383.8,0.586]
[1760016999969,0.93320275,4384.4,4384.1,0.586]
[1760017000173,0.4104,4384.2,4384.1,0.586]
[1760017000371,0.1245,4384.5,4384.1,0.586]
[1760017000573,0.41039,4384.3,4384.1,0.4104]
[1760017000775,0.41036,4384.6,4384.3,0.41038]
[1760017000977,0.41036,4384.6,4384.5,0.8071]
[1760017001970,0.00260602,4385.0,4384.9,0.586]
[1760017002171,0.00260602,4385.0,4384.9,0.819]
[1760017002363,0.00260602,4385.0,4384.9,41.619]
[1760017002567,3.2078,4386.1,4384.9,41.619]
[1760017002568,3.2078,4386.1,4386.0,0.8228]
[1760017002772,3.61802,4386.1,4386.0,0.8228]
[1760017003573,0.00181213,4386.1,4386.0,0.8228]
[1760017004178,0.00181213,4386.1,4386.0,42.03303]
[1760017004667,0.00181213,4386.1,4386.0,47.26503]
[1760017004875,0.51955,4386.9,4386.6,0.5947]
[1760017005072,0.1094,4386.9,4386.8,0.5947]
[1760017005273,0.1094,4386.9,4386.8,0.8267]
[1760017005671,3.2078,4387.4,4387.3,1.00481]
[1760017005969,0.00198564,4387.4,4387.3,1.23945948]
[1760017006368,3.2078,4389.2,4388.1,1.00473]
[1760017006571,0.40999,4388.6,4388.3,0.5947]
[1760017006770,0.40998,4388.7,4388.2,3.2078]
[1760017006969,0.40998,4388.7,4387.5,0.1129]
[1760017006970,0.5529,4388.3,4387.9,0.233]
[1760017007171,1.02511,4388.0,4387.3,40.80264948]
[1760017007369,0.4101,4387.4,4387.3,40.80264948]
[1760017007574,0.41006,4387.9,4387.3,40.80264948]
[1760017007774,0.00287811,4388.0,4387.6,3.2078]
[1760017008180,0.00287811,4388.0,4387.7,0.5947]
[1760017008477,0.41005,4387.9,4387.7,0.5947]
[1760017008679,0.41005,4387.9,4387.6,3.4408]
[1760017008879,0.00287811,4388.0,4387.6,3.85087]
[1760017009081,0.41006,4387.9,4387.7,0.5947]
[1760017009275,0.41006,4387.9,4387.6,3.4408]
[1760017009476,0.00287811,4388.0,4387.7,0.5947]
[1760017009674,0.00287811,4388.0,4387.8,0.41005]
[1760017009881,0.00287811,4388.0,4387.9,0.8277]
[1760017010482,0.00287811,4388.0,4387.9,41.6277]
[1760017010875,3.2078,4389.6,4388.7,0.40997]
[1760017011075,0.40988,4389.8,4389.4,0.4099]
[1760017011278,0.40988,4389.8,4389.0,0.2371]
[1760017011279,0.40987,4389.9,4389.1,0.8277]
[1760017011490,0.40987,4389.9,4389.5,0.4099]
[1760017011983,0.00286169,4389.9,4389.8,3.8025]
[1760017012484,0.00286169,4389.9,4389.8,4.0345]
[1760017013178,0.55576169,4389.9,4389.8,3.2078]
[1760017013383,5.55576169,4389.9,4389.8,3.2078]
[1760017014088,8.76356169,4389.9,4389.2,40.8]
[1760017014280,0.40992,4389.3,4389.2,40.8]
[1760017014677,5.96282,4389.3,4389.2,40.8]
[1760017014881,5.96282,4389.3,4388.4,3.2078]
[1760017014882,5.0,4389.3,4388.5,0.8318]
[1760017015081,0.40994,4389.2,4388.9,3.2078]
[1760017015282,0.40994,4389.1,4388.9,44.0078]
[1760017015478,0.40994,4389.1,4389.0,0.5947]
[1760017015884,0.5529,4389.7,4388.7,0.232]
[1760017016079,3.21066169,4389.9,4388.5,0.2371]
[1760017016080,0.00286169,4389.9,4389.7,0.40988]
[1760017016287,0.00286169,4389.9,4389.8,0.5947]
[1760017016584,0.00286169,4389.9,4389.8,0.8267]
[1760017017085,3.76356169,4389.9,4389.8,40.8]
[1760017017288,8.76356169,4389.9,4389.8,40.8]
[1760017018180,0.4099,4389.5,4389.3,0.40992]
[1760017018388,0.4099,4389.5,4389.4,0.5947]
[1760017018583,0.00286169,4389.9,4389.7,1.00458]
[1760017018890,0.00286169,4389.9,4389.8,0.5947]
[1760017020481,0.008,4390.6,4389.8,0.5947]
[1760017020482,0.008,4390.6,4390.5,1.24161]
[1760017020682,0.008,4390.6,4390.5,4.68141]
[1760017020984,0.008,4390.6,4390.5,4.44941]
[1760017021182,0.008,4390.6,4390.5,3.8025]
[1760017021377,0.00982102,4390.6,4390.5,3.21044784]
[1760017021589,0.56272102,4390.6,4390.5,0.00264784]
[1760017022087,0.00982102,4390.6,4390.5,0.70444784]
[1760017022291,0.00982102,4390.6,4390.5,0.93644784]
[1760017022490,3.2078,4392.4,4390.5,5.93644784]
[1760017022679,0.40969,4391.8,4391.6,0.4097]
[1760017022883,1.26108,4392.0,4391.0,0.5947]
[1760017023084,0.40971,4391.6,4391.1,0.233]
[1760017023384,0.40967,4392.0,4391.5,0.8318]
[1760017023590,0.40969,4391.9,4391.5,0.4691]
[1760017023783,0.40969,4391.8,4391.6,1.0044]
[1760017023990,0.00227941,4392.0,4391.7,40.8]
[1760017024186,0.40968,4391.9,4391.8,0.5947]
[1760017024485,0.00227941,4392.0,4391.9,0.5947]
[1760017024879,0.00227941,4392.0,4391.9,4.0345]
[1760017025281,0.022,4392.9,4392.1,0.5947]
[1760017025484,0.40967,4392.1,4391.9,3.4398]
[1760017025689,0.40968,4391.9,4391.7,40.8]
[1760017025889,0.40968,4391.9,4391.7,41.3947]
[1760017026386,0.40968,4391.9,4391.7,40.8]
[1760017026387,0.96500734,4391.9,4391.7,40.8]
[1760017026591,0.41210734,4391.9,4391.7,40.8]
[1760017026787,0.00242734,4391.9,4391.8,3.8025]
[1760017027296,0.00242734,4391.9,4391.8,4.0345]
[1760017028601,0.5529,4393.3,4392.8,0.5947]
[1760017028788,3.2078,4393.4,4392.8,0.5947]
[1760017029096,0.40958,4393.0,4392.8,0.5947]
[1760017029392,0.5749,4392.9,4392.8,40.8]
[1760017029592,0.40964,4392.3,4392.2,3.2078]
[1760017029793,0.96254,4392.3,4392.2,3.2078]
[1760017029997,0.40972,4391.5,4391.3,0.232]
[1760017030194,0.40972,4391.5,4391.4,40.8]
[1760017030395,0.40971,4391.6,4391.5,0.5947]
[1760017030891,0.5529,4391.5,4391.4,40.8]
[1760017031092,0.40975,4391.1,4390.8,0.232]
[1760017031394,0.4098,4390.6,4390.5,3.21044784]
[1760017031585,0.4098,4390.6,4390.5,0.00264784]
[1760017031586,4.1705,4390.6,4390.5,0.00264784]
[1760017031785,0.96274,4390.1,4390.0,3.2078]
[1760017031989,0.96274,4390.1,4388.9,3.8025]
[1760017031990,0.40994,4389.2,4388.9,3.8025]
[1760017032190,0.5529,4389.3,4387.9,3.2078]
[1760017032395,3.2078,4389.4,4388.5,0.7987]
[1760017032587,3.61771,4389.4,4388.7,0.5641]
[1760017032791,0.40992,4389.3,4388.8,0.232]
[1760017032989,0.40992,4389.3,4388.7,0.0026192]
[1760017032990,0.5715,4389.3,4388.7,0.0026192]
[1760017033290,0.5715,4388.8,4388.7,0.0026192]
[1760017033693,0.5715,4388.5,4387.4,0.5641]
[1760017034005,0.5715,4388.5,4387.2,3.2078]
[1760017034006,3.61783,4388.2,4387.6,0.5641]
[1760017034196,0.41004,4388.1,4387.6,0.5641]
[1760017034398,0.41004,4388.1,4387.5,41.44309]
[1760017034693,3.2078,4388.2,4387.5,41.36702946]
[1760017034888,3.2078,4387.7,4387.5,40.80292946]
[1760017035089,0.5715,4387.6,4387.5,40.80292946]
[1760017035704,0.41014,4387.0,4386.5,3.2078]
[1760017035996,0.4102,4386.3,4386.0,0.233]
[1760017036296,0.98171,4386.2,4386.1,40.8]
[1760017036596,0.41024,4385.9,4385.7,3.2078]
[1760017036800,0.5715,4385.8,4385.7,0.00214679]
[1760017037198,0.5715,4385.9,4385.2,0.4103]
[1760017037407,0.41026,4385.7,4385.3,0.5641]
[1760017037603,0.41028,4385.5,4385.3,0.5641]
[1760017037895,0.41029,4385.3,4385.1,40.8]
[1760017038096,0.41029,4385.3,4383.1,10.26246]
[1760017038097,0.5715,4384.5,4384.2,3.2078]
[1760017038296,0.5715,4384.4,4383.6,3.2078]
[1760017038502,0.233,4384.6,4383.7,41.033]
[1760017038698,0.64725,4384.8,4384.0,3.7719]
[1760017038699,0.64335,4384.8,4384.0,3.7719]
[1760017038896,3.61817,4384.6,4384.0,4.0049]
[1760017039096,0.41038,4384.4,4384.0,4.00681778]
[1760017039296,3.2078,4384.6,4384.0,0.00191778]
[1760017039297,0.5715,4384.1,4384.0,0.00191778]
[1760017039499,3.2078,4384.6,4384.0,0.41232778]
[1760017039694,3.2078,4384.6,4384.0,0.00191778]
[1760017039895,3.4408,4384.6,4384.2,0.5641]
[1760017040104,3.4408,4384.6,4384.4,0.5641]
[1760017040307,3.2078,4384.6,4384.5,0.97447]
[1760017040698,3.2078,4384.6,4384.5,0.5641]
[1760017040903,3.61817,4384.6,4384.0,0.23491778]
[1760017041106,3.2078,4384.6,4384.0,0.23491778]
[1760017041508,3.2078,4384.6,4384.0,0.00191778]
[1760017041807,3.2078,4384.6,4384.5,0.41037]
[1760017042206,3.2078,4384.6,4384.3,0.41038]
[1760017042401,3.2078,4384.6,4384.3,1.01058]
[1760017042599,3.2078,4384.6,4384.5,0.41037]
[1760017042804,0.233,4384.9,4384.5,1.01057]
[1760017043004,3.4408,4384.9,4384.5,0.6002]
[1760017043209,3.4408,4384.9,4384.0,0.00191778]
[1760017043210,0.4104,4384.2,4384.0,0.00191778]
[1760017043506,0.5619,4384.1,4384.0,0.00191778]
[1760017044207,3.2078,4384.3,4384.0,0.00191778]
[1760017044412,3.4408,4384.8,4384.2,0.6002]
[1760017044703,0.233,4384.7,4384.3,0.6002]
[1760017044909,0.5619,4384.1,4384.0,0.00191778]
[1760017045211,3.2078,4384.1,4384.0,0.00191778]
[1760017045501,3.7697,4384.1,4384.0,0.00191778]
[1760017046507,0.41047,4383.5,4382.8,0.6002]
[1760017046705,0.5619,4382.6,4382.2,0.6002]
[1760017046901,0.5619,4382.6,4382.4,40.8]
[1760017047098,1.20546,4382.5,4382.4,40.8]
[1760017047402,0.41057,4382.3,4381.8,0.41061]
[1760017047604,3.7697,4382.1,4381.8,0.00201166]
[1760017047804,0.5619,4382.0,4381.8,0.00201166]
[1760017048106,0.5619,4382.0,4381.9,40.8]
[1760017048303,1.0362,4382.0,4381.9,40.8]
[1760017049020,1.0362,4382.0,4381.8,0.00201166]
[1760017049021,0.97251,4381.9,4381.8,0.00201166]
[1760017049810,0.5619,4381.9,4381.8,0.00201166]
[1760017050807,0.24425403,4382.5,4381.8,0.00201166]
[1760017050808,0.41057,4382.4,4382.0,0.41059]
[1760017051009,0.4106,4382.1,4381.8,0.00201166]
[1760017051206,0.97251,4382.0,4381.8,0.00201166]
[1760017051507,0.5619,4381.9,4381.8,0.00201166]
[1760017052204,0.97251,4381.9,4381.8,0.00201166]
[1760017052706,0.233,4381.9,4381.8,0.00201166]
[1760017052909,0.7949,4381.9,4381.8,0.00201166]
[1760017053105,0.5619,4381.9,4381.8,0.00201166]
[1760017053305,3.2078,4382.0,4381.8,0.41263166]
[1760017053506,3.2078,4382.0,4381.8,1.01283166]
[1760017053507,3.4408,4382.0,4381.8,1.01283166]
[1760017053811,3.4408,4382.0,4381.9,0.6002]
[1760017054613,4.41331,4382.0,4381.8,0.00201166]
[1760017055011,0.5619,4381.9,4381.8,0.00201166]
[1760017055409,0.41069,4381.1,4381.0,40.8]
[1760017055610,4.41339,4381.1,4381.0,40.8]
[1760017055811,4.41339,4381.1,4380.4,3.2078]
[1760017055812,0.5619,4380.5,4380.4,3.2078]
[1760017056006,0.5619,4379.9,4379.6,3.4408]
[1760017056207,0.41078,4380.2,4379.8,1.011]
[1760017056507,0.41079,4380.1,4379.8,0.00220238]
[1760017056708,0.5619,4380.0,4379.8,0.00220238]
[1760017056911,3.7697,4380.6,4379.8,0.00220238]
[1760017057213,3.7697,4380.6,4380.5,0.6002]
[1760017057214,3.4408,4380.6,4380.5,0.6002]
[1760017057514,1.26782,4382.0,4380.5,0.6002]
[1760017057515,0.5619,4381.9,4381.7,0.41063]
[1760017057714,3.2078,4382.0,4381.8,0.41062]
[1760017058010,3.2078,4382.0,4381.9,41.4002]
[1760017058308,3.39325403,4382.5,4382.4,0.41056]
[1760017058503,3.39325403,4382.5,4382.4,1.01076]
[1760017058706,3.21075403,4382.5,4382.4,41.81076]
[1760017058908,3.21075403,4382.5,4382.4,46.94726]
[1760017059104,3.2078,4383.1,4383.0,1.01071]
[1760017059310,3.2078,4383.7,4383.0,1.0577]
[1760017059514,3.2078,4383.7,4383.3,0.6002]
[1760017059813,3.2078,4383.7,4383.6,0.41045]
[1760017060012,3.2078,4384.4,4384.3,0.6002]
[1760017060210,3.21037217,4384.4,4384.3,0.6002]
[1760017060410,0.00257217,4384.4,4384.3,46.4002]
[1760017061513,3.61806,4385.7,4385.1,0.6002]
[1760017061718,0.233,4385.6,4385.5,0.6002]
[1760017062016,3.2078,4385.7,4385.5,0.63142026]
[1760017062608,3.20973222,4385.7,4385.5,0.63142026]
[1760017062816,3.61999222,4385.7,4385.5,0.6002]
[1760017063108,3.61999222,4385.7,4384.3,40.8]
[1760017063109,0.41037,4384.5,4384.3,40.8]
[1760017063415,0.41035,4384.7,4384.3,40.8]
[1760017063612,3.2078,4384.8,4384.3,41.21038]
[1760017063813,3.2078,4384.8,4384.5,0.5987]
[1760017064115,0.233,4385.0,4384.9,0.5987]
[1760017064316,0.41027,4385.6,4384.9,0.5987]
[1760017064515,0.41027,4385.6,4385.2,0.5886]
[1760017064717,0.41029,4385.4,4385.1,0.233]
[1760017064917,0.4103,4385.3,4385.0,0.233]
[1760017065219,0.41029,4385.4,4385.1,0.5886]
[1760017065413,3.2078,4385.8,4385.1,0.5886]
[1760017065613,0.4103,4385.3,4385.1,0.5886]
[1760017066215,0.4103,4385.3,4385.2,40.8]
[1760017066814,3.2078,4385.8,4385.3,0.5886]
[1760017067018,3.2078,4385.8,4385.6,0.5886]
[1760017067422,0.41026,4385.6,4385.4,0.5886]
[1760017067719,3.2078,4385.8,4385.6,0.5886]
[1760017068115,3.2078,4386.3,4386.2,0.5886]
[1760017068320,3.2078,4386.3,4386.2,0.8216]
[1760017068720,0.1823,4386.8,4386.3,0.4102]
[1760017068917,0.1823,4386.8,4386.5,0.5886]
[1760017069215,0.1823,4386.8,4386.4,40.8]
[1760017069216,0.41018,4386.5,4386.4,40.8]
[1760017069421,1.00168,4386.5,4386.4,40.8]
[1760017069620,0.41018,4386.5,4386.4,40.8]
[1760017069816,0.18465536,4386.8,4386.4,40.8]
[1760017070016,0.5915,4386.5,4386.4,40.8]
[1760017070216,0.5915,4385.8,4385.1,0.5886]
[1760017070418,0.41031,4385.1,4384.9,0.233]
[1760017070816,0.41029,4385.4,4385.0,0.41032]
[1760017071020,3.4408,4385.6,4385.0,0.41032]
[1760017071021,3.2078,4385.6,4385.0,0.5886]
[1760017071221,0.41028,4385.5,4385.1,41.21031]
[1760017071613,0.41028,4385.5,4385.2,0.5886]
[1760017071817,0.41028,4385.5,4385.1,41.21031]
[1760017072024,0.64325,4385.8,4385.3,0.41029]
[1760017072225,3.2078,4386.1,4385.5,0.5886]
[1760017072524,3.2078,4386.1,4386.0,0.7841]
[1760017072823,3.2078,4386.1,4386.0,1.0171]
[1760017073826,3.2078,4386.7,4386.6,0.99877]
[1760017074020,3.2078,4386.7,4386.6,1.23177]
[1760017074222,0.5915,4387.5,4386.6,1.23177]
[1760017074223,3.2078,4387.3,4387.2,0.41012]
[1760017074421,3.2078,4387.3,4387.2,1.23172]
[1760017074726,3.2078,4387.3,4387.2,0.8216]
[1760017075020,3.2078,4387.3,4387.2,41.6216]
[1760017075230,3.2078,4387.3,4387.2,41.3886]
[1760017075414,3.21009109,4387.3,4387.2,41.62382639]
[1760017075721,3.21009109,4387.3,4387.2,42.05557385]
[1760017076218,3.21009109,4387.3,4387.2,42.06987548]
[1760017076620,3.21009109,4387.3,4387.2,41.66234873]
[1760017078627,0.00229109,4387.3,4387.2,41.66234873]
[1760017078829,0.00229109,4387.3,4387.2,41.42934873]
[1760017079019,0.00229109,4387.3,4387.2,41.66234873]
[1760017079221,8.80159109,4387.3,4387.2,40.84074873]
[1760017079428,8.80159109,4387.3,4386.0,0.1955]
[1760017079429,0.2218,4387.0,4386.1,0.41022]
[1760017079726,0.41022,4386.1,4386.0,0.5886]
[1760017079927,0.41022,4386.1,4386.0,41.6216]
[1760017080424,0.41022,4386.1,4386.0,40.80226699]
[1760017080723,3.21009109,4387.3,4386.6,0.41017]
[1760017080921,0.00229109,4387.3,4386.5,3.6363]
[1760017081118,0.00229109,4387.3,4387.2,0.99872]
[1760017081319,0.00229109,4387.3,4386.5,3.9919]
[1760017081524,0.41240109,4387.3,4386.8,0.41015]
[1760017081718,0.00229109,4387.3,4387.1,0.41012]
[1760017081921,0.00229109,4387.3,4387.2,0.83681036]
[1760017082122,0.00229109,4387.3,4387.2,0.60381036]
[1760017082327,8.80159109,4387.3,4387.2,0.01521036]
[1760017082532,0.5915,4386.8,4386.0,0.00226699]
[1760017082734,0.5915,4386.1,4386.0,0.00226699]
[1760017083226,5.5915,4386.1,4386.0,0.00226699]
[1760017083424,5.5915,4386.1,4385.0,3.2078]
[1760017083425,8.7993,4386.1,4385.0,3.2078]
[1760017083618,3.7993,4386.1,4385.2,0.5886]
[1760017083823,0.41021,4386.2,4385.6,3.2078]
[1760017084019,3.2078,4386.1,4385.3,40.8]
[1760017084221,0.5915,4385.6,4385.3,40.8]
[1760017084422,4.43138,4385.4,4385.3,0.00234345]
[1760017084622,4.43138,4385.4,4384.3,0.5886]
[1760017084623,3.7993,4385.4,4384.3,0.7506]
[1760017084828,0.41031,4385.2,4384.9,0.5886]
[1760017085031,0.41031,4385.2,4385.0,40.8]
[1760017085333,0.4103,4385.2,4385.0,41.3886]
[1760017085628,3.4408,4385.4,4385.2,0.4103]